[Event "Early-Titled-Tuesday-Blitz-August-29-2023"]
[Site "Chess.com"]
[Date "2023.08.29"]
[Round "5"]
[White "benny_aizenberg"]
[Black "abhidabhi"]
[Result "0-1"]
[WhiteElo "2656"]
[BlackElo "2918"]
[TimeControl "180+1"]
[EndTime "8:53:06 PDT"]
[Termination "abhidabhi won by checkmate"]

1. c4 {[%clk 0:03:00.9]} 1... e5 {[%clk 0:02:57.8]} 2. g3 {[%clk 0:03:00.9]}
2... Nf6 {[%clk 0:02:56.9]} 3. Bg2 {[%clk 0:02:59.6]} 3... d5 {[%clk 0:02:55.7]}
4. cxd5 {[%clk 0:02:58.6]} 4... Nxd5 {[%clk 0:02:56.1]} 5. Nc3 {[%clk
0:02:56.9]} 5... Nb6 {[%clk 0:02:51.5]} 6. Nf3 {[%clk 0:02:54.6]} 6... Nc6
{[%clk 0:02:51.3]} 7. O-O {[%clk 0:02:51.3]} 7... Be7 {[%clk 0:02:51.7]} 8. d3
{[%clk 0:02:50.8]} 8... O-O {[%clk 0:02:51.5]} 9. Be3 {[%clk 0:02:50.1]} 9...
Re8 {[%clk 0:02:49.8]} 10. Rc1 {[%clk 0:02:49.5]} 10... Bf8 {[%clk 0:02:44.3]}
11. a3 {[%clk 0:02:48.4]} 11... h6 {[%clk 0:02:40.3]} 12. b4 {[%clk 0:02:40.6]}
12... a5 {[%clk 0:02:39.5]} 13. b5 {[%clk 0:02:39.2]} 13... Nd4 {[%clk
0:02:39.6]} 14. a4 {[%clk 0:02:33.7]} 14... Bg4 {[%clk 0:02:36.6]} 15. Bxd4
{[%clk 0:02:30.2]} 15... exd4 {[%clk 0:02:36.4]} 16. Ne4 {[%clk 0:02:30.7]}
16... Bb4 {[%clk 0:02:31.6]} 17. Qb3 {[%clk 0:02:24.2]} 17... Be6 {[%clk
0:02:28.1]} 18. Qb2 {[%clk 0:02:21.6]} 18... Nxa4 {[%clk 0:02:24.6]} 19. Qxd4
{[%clk 0:02:13.5]} 19... f5 {[%clk 0:02:18.4]} 20. Qxd8 {[%clk 0:02:04]} 20...
Rexd8 {[%clk 0:02:09.5]} 21. Ned2 {[%clk 0:02:04.9]} 21... Nc3 {[%clk
0:02:09.1]} 22. Rfe1 {[%clk 0:01:51.6]} 22... Nxb5 {[%clk 0:02:09.1]} 23. Kf1
{[%clk 0:01:50.9]} 23... Bd5 {[%clk 0:02:06.8]} 24. Rc2 {[%clk 0:01:44.2]} 24...
Bxf3 {[%clk 0:01:59.3]} 25. Bxf3 {[%clk 0:01:42.7]} 25... Nd4 {[%clk 0:01:59.2]}
26. Rb2 {[%clk 0:01:29.3]} 26... Nxf3 {[%clk 0:01:58.5]} 27. exf3 {[%clk
0:01:27.5]} 27... Rxd3 {[%clk 0:01:57.8]} 28. Re2 {[%clk 0:01:23.2]} 28... Rxd2
{[%clk 0:01:53.8]} 29. Rexd2 {[%clk 0:01:24.1]} 29... Bxd2 {[%clk 0:01:54.1]}
30. Rxd2 {[%clk 0:01:25]} 30... a4 {[%clk 0:01:48.1]} 31. Ra2 {[%clk 0:01:23.5]}
31... b5 {[%clk 0:01:48.2]} 32. Ke2 {[%clk 0:01:22.1]} 32... b4 {[%clk
0:01:48.3]} 33. Kd3 {[%clk 0:01:22.6]} 33... b3 {[%clk 0:01:40.4]} 34. Ra3
{[%clk 0:01:21.2]} 34... Rb8 {[%clk 0:01:40.1]} 35. Ra1 {[%clk 0:01:15.9]} 35...
b2 {[%clk 0:01:40.2]} 36. Rb1 {[%clk 0:01:15.1]} 36... a3 {[%clk 0:01:40.6]} 37.
Kc2 {[%clk 0:01:14.9]} 37... Rb6 {[%clk 0:01:40.4]} 38. Rd1 {[%clk 0:01:09.9]}
38... a2 {[%clk 0:01:40.2]} 39. Rd8+ {[%clk 0:01:08.4]} 39... Kh7 {[%clk
0:01:40.1]} 40. Kd3 {[%clk 0:01:07.2]} 40... b1=Q+ {[%clk 0:01:39.9]} 41. Ke3
{[%clk 0:01:07.4]} 41... a1=Q {[%clk 0:01:39.3]} 42. g4 {[%clk 0:01:06.6]} 42...
Qe5+ {[%clk 0:01:34.1]} 43. Kd2 {[%clk 0:01:06.2]} 43... Rb2# {[%clk 0:01:34.3]}
0-1

[Event "Early-Titled-Tuesday-Blitz-August-29-2023"]
[Site "Chess.com"]
[Date "2023.08.29"]
[Round "5"]
[White "salzikis"]
[Black "HajiyevKanan"]
[Result "1-0"]
[WhiteElo "2421"]
[BlackElo "2497"]
[TimeControl "180+1"]
[EndTime "8:53:26 PDT"]
[Termination "salzikis won by resignation"]

1. e4 {[%clk 0:03:00.9]} 1... c6 {[%clk 0:02:55.8]} 2. Nc3 {[%clk 0:02:59.9]}
2... d5 {[%clk 0:02:56.7]} 3. Nf3 {[%clk 0:03:00.1]} 3... a6 {[%clk 0:02:57.4]}
4. exd5 {[%clk 0:02:56.8]} 4... cxd5 {[%clk 0:02:58.3]} 5. d4 {[%clk 0:02:56.9]}
5... Nc6 {[%clk 0:02:59]} 6. h3 {[%clk 0:02:52.6]} 6... Bf5 {[%clk 0:02:58.8]}
7. Bd3 {[%clk 0:02:52.8]} 7... Bxd3 {[%clk 0:02:58.2]} 8. Qxd3 {[%clk 0:02:53]}
8... e6 {[%clk 0:02:59.1]} 9. O-O {[%clk 0:02:52.6]} 9... Nf6 {[%clk 0:02:57.9]}
10. Bf4 {[%clk 0:02:52.4]} 10... Bd6 {[%clk 0:02:58.1]} 11. Bxd6 {[%clk
0:02:51.7]} 11... Qxd6 {[%clk 0:02:59]} 12. Rfe1 {[%clk 0:02:46.3]} 12... O-O
{[%clk 0:02:59.9]} 13. Ne5 {[%clk 0:02:46]} 13... Qc7 {[%clk 0:03:00.4]} 14.
Nxc6 {[%clk 0:02:45.6]} 14... Qxc6 {[%clk 0:02:59.9]} 15. Ne2 {[%clk 0:02:45.1]}
15... b5 {[%clk 0:02:59.3]} 16. a3 {[%clk 0:02:44.8]} 16... Qc4 {[%clk
0:02:58.8]} 17. Red1 {[%clk 0:02:42.3]} 17... Qxd3 {[%clk 0:02:57.7]} 18. Rxd3
{[%clk 0:02:41.7]} 18... Rfc8 {[%clk 0:02:58.6]} 19. c3 {[%clk 0:02:41.9]} 19...
a5 {[%clk 0:02:58]} 20. f3 {[%clk 0:02:36.4]} 20... h5 {[%clk 0:02:51.6]} 21. h4
{[%clk 0:02:32.1]} 21... g6 {[%clk 0:02:49.9]} 22. Kf2 {[%clk 0:02:32.4]} 22...
Kf8 {[%clk 0:02:49]} 23. g3 {[%clk 0:02:32.1]} 23... Nd7 {[%clk 0:02:47.5]} 24.
Ke3 {[%clk 0:02:29.1]} 24... Nb6 {[%clk 0:02:47.4]} 25. Kf2 {[%clk 0:02:20.6]}
25... Nc4 {[%clk 0:02:46.8]} 26. Ra2 {[%clk 0:02:19.4]} 26... Ke7 {[%clk
0:02:43.1]} 27. b3 {[%clk 0:02:15.7]} 27... Nd6 {[%clk 0:02:42.8]} 28. a4 {[%clk
0:02:04.6]} 28... Rab8 {[%clk 0:02:36.1]} 29. axb5 {[%clk 0:02:02.2]} 29... Rxb5
{[%clk 0:02:37]} 30. Ra3 {[%clk 0:02:01.5]} 30... Rcb8 {[%clk 0:02:36.2]} 31.
Nc1 {[%clk 0:01:57.8]} 31... Kd7 {[%clk 0:02:31]} 32. Rd2 {[%clk 0:01:57.2]}
32... Kc7 {[%clk 0:02:27.9]} 33. Rda2 {[%clk 0:01:57]} 33... Nb7 {[%clk
0:02:19.2]} 34. Ke3 {[%clk 0:01:55]} 34... Kd6 {[%clk 0:02:18]} 35. f4 {[%clk
0:01:53.4]} 35... Rb6 {[%clk 0:02:18.1]} 36. Kd3 {[%clk 0:01:53.4]} 36... Rc6
{[%clk 0:02:18.5]} 37. Rc2 {[%clk 0:01:53.2]} 37... Rbc8 {[%clk 0:02:18.9]} 38.
Ne2 {[%clk 0:01:51.1]} 38... Ke7 {[%clk 0:02:17.2]} 39. c4 {[%clk 0:01:45.5]}
39... Nd6 {[%clk 0:01:59.5]} 40. c5 {[%clk 0:01:38.7]} 40... Nb7 {[%clk
0:01:57.7]} 41. Rb2 {[%clk 0:01:33.4]} 41... R8c7 {[%clk 0:01:46.4]} 42. b4
{[%clk 0:01:32.4]} 42... axb4 {[%clk 0:01:46.3]} 43. Rxb4 {[%clk 0:01:32.6]}
43... f6 {[%clk 0:01:43.4]} 44. Ra7 {[%clk 0:01:31.7]} 44... Na5 {[%clk
0:01:41]} 45. Rxa5 {[%clk 0:01:31.1]} 45... e5 {[%clk 0:01:36.3]} 46. Rab5
{[%clk 0:01:29.8]} 46... e4+ {[%clk 0:01:35.9]} 47. Ke3 {[%clk 0:01:29.4]} 47...
Ke6 {[%clk 0:01:35]} 48. Rb6 {[%clk 0:01:29.3]} 48... Kf5 {[%clk 0:01:35.6]} 49.
Rxc6 {[%clk 0:01:29.3]} 49... Rxc6 {[%clk 0:01:36.5]} 50. Rb6 {[%clk 0:01:29]}
50... Rc8 {[%clk 0:01:36.6]} 51. c6 {[%clk 0:01:29.5]} 51... Ra8 {[%clk
0:01:36.2]} 52. Rb3 {[%clk 0:01:28.5]} 52... Rc8 {[%clk 0:01:33.2]} 53. Rc3
{[%clk 0:01:28.8]} 53... Rc7 {[%clk 0:01:33.9]} 54. Rc5 {[%clk 0:01:29]} 54...
Ke6 {[%clk 0:01:34]} 55. Nc3 {[%clk 0:01:29.6]} 55... Kd6 {[%clk 0:01:34.4]} 56.
Rxd5+ {[%clk 0:01:29.6]} 56... Kxc6 {[%clk 0:01:34.2]} 57. Rc5+ {[%clk 0:01:30]}
57... Kd6 {[%clk 0:01:34.7]} 58. Rxc7 {[%clk 0:01:30.1]} 1-0

[Event "Early-Titled-Tuesday-Blitz-August-29-2023"]
[Site "Chess.com"]
[Date "2023.08.29"]
[Round "5"]
[White "rikchessmx"]
[Black "supertfc"]
[Result "1-0"]
[WhiteElo "2452"]
[BlackElo "2282"]
[TimeControl "180+1"]
[EndTime "8:53:29 PDT"]
[Termination "rikchessmx won by resignation"]

1. e4 {[%clk 0:01:46.8]} 1... e5 {[%clk 0:02:58.6]} 2. Nf3 {[%clk 0:01:45.7]}
2... Nc6 {[%clk 0:02:57.2]} 3. Bc4 {[%clk 0:01:46]} 3... Nf6 {[%clk 0:02:55.6]}
4. d3 {[%clk 0:01:45.1]} 4... Bc5 {[%clk 0:02:53.7]} 5. c3 {[%clk 0:01:44.7]}
5... a6 {[%clk 0:02:53.4]} 6. Qe2 {[%clk 0:01:43.2]} 6... Ba7 {[%clk 0:02:52.7]}
7. Be3 {[%clk 0:01:42]} 7... O-O {[%clk 0:02:50.2]} 8. Bxa7 {[%clk 0:01:41.6]}
8... Rxa7 {[%clk 0:02:51.1]} 9. O-O {[%clk 0:01:41.5]} 9... d6 {[%clk
0:02:46.2]} 10. h3 {[%clk 0:01:41.4]} 10... Ne7 {[%clk 0:02:39.8]} 11. Nbd2
{[%clk 0:01:39.5]} 11... Ng6 {[%clk 0:02:39.2]} 12. Rfd1 {[%clk 0:01:39.8]}
12... Nh5 {[%clk 0:02:24.7]} 13. Qe3 {[%clk 0:01:38]} 13... Ra8 {[%clk
0:02:22.5]} 14. d4 {[%clk 0:01:36.9]} 14... Nhf4 {[%clk 0:02:17.3]} 15. Bf1
{[%clk 0:01:36.2]} 15... Qf6 {[%clk 0:02:15.1]} 16. Kh2 {[%clk 0:01:29.1]} 16...
h6 {[%clk 0:02:02.4]} 17. g3 {[%clk 0:01:27.8]} 17... Ne6 {[%clk 0:01:58.1]} 18.
d5 {[%clk 0:01:19.1]} 18... Ng5 {[%clk 0:01:42.4]} 19. Nxg5 {[%clk 0:01:18.6]}
19... hxg5 {[%clk 0:01:43.3]} 20. Be2 {[%clk 0:01:14.8]} 20... Ne7 {[%clk
0:01:34.6]} 21. Bg4 {[%clk 0:01:12.3]} 21... Qh6 {[%clk 0:01:13.9]} 22. Kg2
{[%clk 0:01:11.7]} 22... g6 {[%clk 0:01:11.8]} 23. Bxc8 {[%clk 0:01:08.8]} 23...
Raxc8 {[%clk 0:01:11.3]} 24. h4 {[%clk 0:00:59.3]} 24... f6 {[%clk 0:00:54.5]}
25. Nf3 {[%clk 0:00:57.7]} 25... Kg7 {[%clk 0:00:50.3]} 26. hxg5 {[%clk
0:00:57.8]} 26... Qh5 {[%clk 0:00:43.9]} 27. Rh1 {[%clk 0:00:51.8]} 27... Qg4
{[%clk 0:00:43.6]} 28. Rh4 {[%clk 0:00:50.2]} 1-0

[Event "Early-Titled-Tuesday-Blitz-August-29-2023"]
[Site "Chess.com"]
[Date "2023.08.29"]
[Round "5"]
[White "Aemulus20"]
[Black "MetiForce"]
[Result "0-1"]
[WhiteElo "2651"]
[BlackElo "2904"]
[TimeControl "180+1"]
[EndTime "8:53:35 PDT"]
[Termination "MetiForce won by resignation"]

1. e4 {[%clk 0:03:00.9]} 1... c5 {[%clk 0:03:00.5]} 2. d4 {[%clk 0:03:01.2]}
2... cxd4 {[%clk 0:03:00.5]} 3. c3 {[%clk 0:03:01.8]} 3... dxc3 {[%clk 0:02:57]}
4. Nxc3 {[%clk 0:03:02.7]} 4... Nc6 {[%clk 0:02:56.5]} 5. Nf3 {[%clk 0:03:03.1]}
5... e6 {[%clk 0:02:56.9]} 6. Bc4 {[%clk 0:03:03.8]} 6... Bb4 {[%clk 0:02:57]}
7. O-O {[%clk 0:02:59.9]} 7... Nge7 {[%clk 0:02:55.4]} 8. Nb5 {[%clk 0:02:41]}
8... d5 {[%clk 0:02:53.5]} 9. exd5 {[%clk 0:02:40]} 9... exd5 {[%clk 0:02:54.4]}
10. Bxd5 {[%clk 0:02:29.3]} 10... O-O {[%clk 0:02:36.2]} 11. Bb3 {[%clk
0:02:25.6]} 11... Bg4 {[%clk 0:02:31.6]} 12. Be3 {[%clk 0:02:08.1]} 12... a6
{[%clk 0:02:30.8]} 13. Qxd8 {[%clk 0:01:59.5]} 13... Raxd8 {[%clk 0:02:30.4]}
14. Nbd4 {[%clk 0:01:59]} 14... Na5 {[%clk 0:02:12.9]} 15. Ne5 {[%clk
0:01:32.2]} 15... Nxb3 {[%clk 0:02:08.6]} 16. Nxb3 {[%clk 0:01:32.7]} 16... Be2
{[%clk 0:01:54.2]} 17. Rfc1 {[%clk 0:01:32.3]} 17... Rd5 {[%clk 0:01:54.5]} 18.
Nf3 {[%clk 0:01:13.4]} 18... Bxf3 {[%clk 0:01:49.1]} 19. gxf3 {[%clk 0:01:13.3]}
19... Nf5 {[%clk 0:01:49.7]} 20. Rd1 {[%clk 0:01:06.8]} 20... Re5 {[%clk
0:01:37.7]} 21. Bd2 {[%clk 0:00:56]} 21... Bxd2 {[%clk 0:01:30.4]} 22. Rxd2
{[%clk 0:00:56.8]} 22... Nh4 {[%clk 0:01:29.3]} 23. Rd7 {[%clk 0:00:39.4]} 23...
Rg5+ {[%clk 0:01:05.4]} 24. Kf1 {[%clk 0:00:38.4]} 24... Nxf3 {[%clk 0:01:02.5]}
25. Rxb7 {[%clk 0:00:30.9]} 25... Re8 {[%clk 0:01:01.3]} 0-1

[Event "Early-Titled-Tuesday-Blitz-August-29-2023"]
[Site "Chess.com"]
[Date "2023.08.29"]
[Round "5"]
[White "kuli4ik"]
[Black "RandomNoob04"]
[Result "1-0"]
[WhiteElo "2908"]
[BlackElo "2655"]
[TimeControl "180+1"]
[EndTime "8:53:36 PDT"]
[Termination "kuli4ik won by resignation"]

1. Nf3 {[%clk 0:02:59.1]} 1... Nf6 {[%clk 0:02:55.5]} 2. g3 {[%clk 0:02:57.7]}
2... g6 {[%clk 0:02:55.9]} 3. b3 {[%clk 0:02:57.7]} 3... Bg7 {[%clk 0:02:56.8]}
4. Bb2 {[%clk 0:02:57.7]} 4... O-O {[%clk 0:02:57.7]} 5. Bg2 {[%clk 0:02:57.2]}
5... c5 {[%clk 0:02:57.4]} 6. c4 {[%clk 0:02:57.1]} 6... Nc6 {[%clk 0:02:56.8]}
7. O-O {[%clk 0:02:56.1]} 7... b6 {[%clk 0:02:53.6]} 8. d4 {[%clk 0:02:55.6]}
8... cxd4 {[%clk 0:02:51.9]} 9. Nxd4 {[%clk 0:02:56.5]} 9... Bb7 {[%clk
0:02:52.7]} 10. Nc3 {[%clk 0:02:56.7]} 10... Qc8 {[%clk 0:02:46.9]} 11. Nc2
{[%clk 0:02:55.3]} 11... d6 {[%clk 0:02:41.1]} 12. Ne3 {[%clk 0:02:54]} 12...
Ne5 {[%clk 0:02:40.8]} 13. Rc1 {[%clk 0:02:48]} 13... Bxg2 {[%clk 0:02:39.4]}
14. Kxg2 {[%clk 0:02:48.9]} 14... Qb7+ {[%clk 0:02:34.9]} 15. Kg1 {[%clk
0:02:48.5]} 15... Rfd8 {[%clk 0:02:25.5]} 16. Qd2 {[%clk 0:02:47.2]} 16... Bh6
{[%clk 0:02:02.3]} 17. f4 {[%clk 0:02:44.6]} 17... Neg4 {[%clk 0:01:48]} 18.
Ncd5 {[%clk 0:02:34.5]} 18... Bg7 {[%clk 0:01:30.5]} 19. Nxg4 {[%clk 0:02:29.9]}
19... Nxg4 {[%clk 0:01:29.7]} 20. Bxg7 {[%clk 0:02:30.8]} 20... Kxg7 {[%clk
0:01:30.4]} 21. f5 {[%clk 0:02:21.2]} 21... Nf6 {[%clk 0:01:09.9]} 22. Qd4
{[%clk 0:02:09.2]} 22... g5 {[%clk 0:00:58.8]} 23. h4 {[%clk 0:02:00.7]} 23...
h6 {[%clk 0:00:59]} 24. hxg5 {[%clk 0:01:59]} 24... hxg5 {[%clk 0:00:59.9]} 25.
Qe3 {[%clk 0:01:58]} 25... Nxd5 {[%clk 0:00:44.8]} 26. Qxg5+ {[%clk 0:01:55.7]}
26... Kf8 {[%clk 0:00:45.5]} 27. cxd5 {[%clk 0:01:49.2]} 27... Qxd5 {[%clk
0:00:46.4]} 28. Rc7 {[%clk 0:01:43.5]} 28... Qe5 {[%clk 0:00:37.7]} 29. Qh6+
{[%clk 0:01:40.9]} 29... Ke8 {[%clk 0:00:37.8]} 30. f6 {[%clk 0:01:35.5]} 30...
Qe3+ {[%clk 0:00:03.4]} 31. Qxe3 {[%clk 0:01:34.2]} 1-0

[Event "Early-Titled-Tuesday-Blitz-August-29-2023"]
[Site "Chess.com"]
[Date "2023.08.29"]
[Round "5"]
[White "Diaschess88"]
[Black "dropstoneDP"]
[Result "0-1"]
[WhiteElo "2654"]
[BlackElo "2970"]
[TimeControl "180+1"]
[EndTime "8:53:44 PDT"]
[Termination "dropstoneDP won by resignation"]

1. e4 {[%clk 0:02:53.8]} 1... e5 {[%clk 0:02:59.2]} 2. Nf3 {[%clk 0:02:54.1]}
2... Nf6 {[%clk 0:02:59]} 3. d4 {[%clk 0:02:53.5]} 3... Nxe4 {[%clk 0:02:58.4]}
4. dxe5 {[%clk 0:02:52.2]} 4... Bc5 {[%clk 0:02:57.9]} 5. Qd5 {[%clk 0:02:30.9]}
5... Bxf2+ {[%clk 0:02:57.3]} 6. Ke2 {[%clk 0:02:31.1]} 6... f5 {[%clk
0:02:57.9]} 7. Nc3 {[%clk 0:02:20.5]} 7... c6 {[%clk 0:02:55.1]} 8. Qd3 {[%clk
0:02:14.9]} 8... O-O {[%clk 0:02:45.8]} 9. Nxe4 {[%clk 0:02:11.4]} 9... fxe4
{[%clk 0:02:46.7]} 10. Qxe4 {[%clk 0:02:12.3]} 10... d5 {[%clk 0:02:46.5]} 11.
Qa4 {[%clk 0:01:53.4]} 11... b5 {[%clk 0:02:41.6]} 12. Qb3 {[%clk 0:01:53.5]}
12... Bb6 {[%clk 0:02:38.7]} 13. Bg5 {[%clk 0:01:48.6]} 13... Qe8 {[%clk
0:02:37.5]} 14. Re1 {[%clk 0:01:47.6]} 14... Nd7 {[%clk 0:02:34.1]} 15. Kd1
{[%clk 0:01:41.2]} 15... Nc5 {[%clk 0:02:33.4]} 16. Qa3 {[%clk 0:01:40]} 16...
Ne4 {[%clk 0:02:32.4]} 17. Bh4 {[%clk 0:01:37.6]} 17... Qh5 {[%clk 0:02:25.9]}
18. Kc1 {[%clk 0:01:35]} 18... Rxf3 {[%clk 0:02:24.8]} 19. gxf3 {[%clk
0:01:22.4]} 19... Qxh4 {[%clk 0:02:25.1]} 20. Bxb5 {[%clk 0:01:22.5]} 20... Qf4+
{[%clk 0:02:24.5]} 21. Kb1 {[%clk 0:01:20.3]} 21... Nd2+ {[%clk 0:02:25.2]} 22.
Ka1 {[%clk 0:01:20.9]} 22... cxb5 {[%clk 0:02:25.8]} 23. e6 {[%clk 0:01:03.5]}
23... Nc4 {[%clk 0:02:10.9]} 24. Qe7 {[%clk 0:00:58.5]} 24... Qf8 {[%clk
0:02:04.6]} 25. Qg5 {[%clk 0:00:48.7]} 25... Qb4 {[%clk 0:02:03.5]} 26. Rb1
{[%clk 0:00:37.3]} 26... Bxe6 {[%clk 0:02:02.1]} 27. c3 {[%clk 0:00:34.3]} 27...
Qf8 {[%clk 0:02:01.5]} 28. Rbe1 {[%clk 0:00:34.2]} 28... Re8 {[%clk 0:02:00.6]}
29. h4 {[%clk 0:00:33.6]} 29... h6 {[%clk 0:02:00]} 30. Qg6 {[%clk 0:00:29.1]}
30... Qf7 {[%clk 0:01:59.7]} 31. Qd3 {[%clk 0:00:26.8]} 31... b4 {[%clk
0:01:59]} 32. cxb4 {[%clk 0:00:25.7]} 32... Qf6 {[%clk 0:01:59]} 33. Re2 {[%clk
0:00:25.6]} 33... Bf7 {[%clk 0:01:59.5]} 34. Rhe1 {[%clk 0:00:21.6]} 34... Rxe2
{[%clk 0:01:57.3]} 35. Rxe2 {[%clk 0:00:22.5]} 35... h5 {[%clk 0:01:57.4]} 36.
a4 {[%clk 0:00:22.1]} 36... g6 {[%clk 0:01:56.6]} 37. Ka2 {[%clk 0:00:21.1]}
37... Ne5 {[%clk 0:01:55.9]} 38. Qd1 {[%clk 0:00:15.8]} 38... d4+ {[%clk
0:01:55.5]} 39. b3 {[%clk 0:00:16.4]} 39... Qxf3 {[%clk 0:01:55.6]} 40. Qd2
{[%clk 0:00:14]} 40... Qxb3+ {[%clk 0:01:54.4]} 41. Ka1 {[%clk 0:00:12.5]} 41...
Qxa4+ {[%clk 0:01:55.3]} 42. Kb2 {[%clk 0:00:12.1]} 42... Nc4+ {[%clk
0:01:54.6]} 0-1

[Event "Early-Titled-Tuesday-Blitz-August-29-2023"]
[Site "Chess.com"]
[Date "2023.08.29"]
[Round "5"]
[White "CrazyAdvenTures"]
[Black "Romkachess"]
[Result "1-0"]
[WhiteElo "2692"]
[BlackElo "2546"]
[TimeControl "180+1"]
[EndTime "8:53:44 PDT"]
[Termination "CrazyAdvenTures won by resignation"]

1. e4 {[%clk 0:03:00.9]} 1... c5 {[%clk 0:02:58.1]} 2. Nc3 {[%clk 0:02:57.3]}
2... d6 {[%clk 0:02:57.7]} 3. d4 {[%clk 0:02:57.3]} 3... cxd4 {[%clk 0:02:58.6]}
4. Qxd4 {[%clk 0:02:57.4]} 4... Nc6 {[%clk 0:02:57.5]} 5. Qd2 {[%clk 0:02:57.5]}
5... g6 {[%clk 0:02:57.1]} 6. b3 {[%clk 0:02:57.9]} 6... Bg7 {[%clk 0:02:57.4]}
7. Bb2 {[%clk 0:02:57.9]} 7... Nf6 {[%clk 0:02:57.5]} 8. O-O-O {[%clk
0:02:58.1]} 8... O-O {[%clk 0:02:55.6]} 9. f3 {[%clk 0:02:58]} 9... Bd7 {[%clk
0:02:53.7]} 10. g4 {[%clk 0:02:43]} 10... Rc8 {[%clk 0:02:50.7]} 11. h4 {[%clk
0:02:37.7]} 11... h5 {[%clk 0:02:40.9]} 12. g5 {[%clk 0:01:57]} 12... Nh7 {[%clk
0:02:31.7]} 13. Kb1 {[%clk 0:01:55]} 13... Nd4 {[%clk 0:02:10.7]} 14. Qf2 {[%clk
0:01:26.7]} 14... b5 {[%clk 0:01:56.4]} 15. Rxd4 {[%clk 0:01:21.2]} 15... Bxd4
{[%clk 0:01:41.7]} 16. Qxd4 {[%clk 0:01:22.1]} 16... e5 {[%clk 0:00:47.1]} 17.
Qxd6 {[%clk 0:01:18]} 17... Be6 {[%clk 0:00:35.1]} 18. Qxd8 {[%clk 0:00:53.2]}
18... Rfxd8 {[%clk 0:00:36]} 19. Bd3 {[%clk 0:00:51.6]} 19... Nf8 {[%clk
0:00:32]} 20. Nxb5 {[%clk 0:00:46.6]} 20... a6 {[%clk 0:00:32.5]} 21. Nc3 {[%clk
0:00:45.4]} 21... Nd7 {[%clk 0:00:31.7]} 22. Bxa6 {[%clk 0:00:45]} 22... Ra8
{[%clk 0:00:31.7]} 23. Bb7 {[%clk 0:00:42.3]} 23... Rab8 {[%clk 0:00:28.9]} 24.
Bd5 {[%clk 0:00:42.6]} 24... Nc5 {[%clk 0:00:29.4]} 25. Nge2 {[%clk 0:00:42.5]}
1-0

[Event "Early-Titled-Tuesday-Blitz-August-29-2023"]
[Site "Chess.com"]
[Date "2023.08.29"]
[Round "5"]
[White "Ariadna_Atreides"]
[Black "VOneChess"]
[Result "0-1"]
[WhiteElo "2217"]
[BlackElo "2117"]
[TimeControl "180+1"]
[EndTime "8:53:47 PDT"]
[Termination "VOneChess won by resignation"]

1. d4 {[%clk 0:03:00.9]} 1... Nf6 {[%clk 0:02:59.4]} 2. Nf3 {[%clk 0:03:00.8]}
2... e6 {[%clk 0:02:58.6]} 3. e3 {[%clk 0:03:01.3]} 3... b6 {[%clk 0:02:58.6]}
4. Bd3 {[%clk 0:03:01.1]} 4... Bb7 {[%clk 0:02:59]} 5. Nbd2 {[%clk 0:03:01.6]}
5... c5 {[%clk 0:02:58.3]} 6. O-O {[%clk 0:03:01.2]} 6... Be7 {[%clk 0:02:58.1]}
7. b3 {[%clk 0:03:01.4]} 7... O-O {[%clk 0:02:58.1]} 8. Bb2 {[%clk 0:03:01.1]}
8... Nc6 {[%clk 0:02:57.1]} 9. dxc5 {[%clk 0:02:59.3]} 9... Bxc5 {[%clk
0:02:55.7]} 10. c4 {[%clk 0:02:55.5]} 10... d5 {[%clk 0:02:54.9]} 11. Qe2 {[%clk
0:02:51]} 11... Rc8 {[%clk 0:02:49.9]} 12. Rac1 {[%clk 0:02:48.9]} 12... Qe7
{[%clk 0:02:48.2]} 13. Rfd1 {[%clk 0:02:44.4]} 13... Rfd8 {[%clk 0:02:47.9]} 14.
Ne5 {[%clk 0:02:41.2]} 14... Nxe5 {[%clk 0:02:22.8]} 15. Bxe5 {[%clk 0:02:40.5]}
15... Nd7 {[%clk 0:02:23.5]} 16. Qh5 {[%clk 0:02:27.8]} 16... g6 {[%clk
0:02:17.7]} 17. Qh6 {[%clk 0:01:59.5]} 17... Nxe5 {[%clk 0:02:17.9]} 18. Bb1
{[%clk 0:01:58.5]} 18... dxc4 {[%clk 0:02:10.9]} 19. Nxc4 {[%clk 0:01:50.1]}
19... Nxc4 {[%clk 0:01:37.5]} 20. bxc4 {[%clk 0:01:48.4]} 20... Qf6 {[%clk
0:01:35.2]} 21. h4 {[%clk 0:01:43.5]} 21... Bf8 {[%clk 0:01:30.3]} 22. Qg5
{[%clk 0:01:38]} 22... Qxg5 {[%clk 0:01:29.5]} 23. hxg5 {[%clk 0:01:38.9]} 23...
Rxc4 {[%clk 0:01:26.1]} 24. f4 {[%clk 0:01:29.8]} 24... Kg7 {[%clk 0:01:18]} 25.
a3 {[%clk 0:01:13.2]} 25... Bxa3 {[%clk 0:01:07.6]} 26. Rxd8 {[%clk 0:01:03.8]}
26... Rxc1+ {[%clk 0:01:06.6]} 27. Kf2 {[%clk 0:01:04.4]} 27... Rxb1 {[%clk
0:01:06.9]} 28. Rd7 {[%clk 0:01:04.8]} 28... Bd5 {[%clk 0:01:05]} 29. Rxa7
{[%clk 0:01:05]} 29... Rb2+ {[%clk 0:01:05.2]} 30. Kf1 {[%clk 0:01:04.6]} 30...
Bc5 {[%clk 0:01:05.1]} 31. Rc7 {[%clk 0:01:03.3]} 31... Rxg2 {[%clk 0:01:04.6]}
32. e4 {[%clk 0:00:58.8]} 32... Bxe4 {[%clk 0:01:01.7]} 33. Rc8 {[%clk
0:00:57.1]} 33... Bf3 {[%clk 0:00:49.9]} 34. Ke1 {[%clk 0:00:54.9]} 34... Be3
{[%clk 0:00:48.4]} 0-1

[Event "Early-Titled-Tuesday-Blitz-August-29-2023"]
[Site "Chess.com"]
[Date "2023.08.29"]
[Round "5"]
[White "Onthequiet"]
[Black "Mr_November18"]
[Result "1-0"]
[WhiteElo "2375"]
[BlackElo "1895"]
[TimeControl "180+1"]
[EndTime "8:53:48 PDT"]
[Termination "Onthequiet won by resignation"]

1. d4 {[%clk 0:02:51.4]} 1... Nf6 {[%clk 0:02:59.5]} 2. Nf3 {[%clk 0:02:51.7]}
2... g6 {[%clk 0:02:58.4]} 3. Bg5 {[%clk 0:02:51]} 3... Bg7 {[%clk 0:02:58.6]}
4. Nbd2 {[%clk 0:02:50.7]} 4... d6 {[%clk 0:02:57.4]} 5. c3 {[%clk 0:02:51.2]}
5... O-O {[%clk 0:02:57.5]} 6. e4 {[%clk 0:02:50.9]} 6... h6 {[%clk 0:02:54.4]}
7. Bh4 {[%clk 0:02:49.6]} 7... c5 {[%clk 0:02:54.3]} 8. dxc5 {[%clk 0:02:48.2]}
8... dxc5 {[%clk 0:02:53.9]} 9. Qc2 {[%clk 0:02:48.7]} 9... Nc6 {[%clk
0:02:52.7]} 10. Be2 {[%clk 0:02:48.4]} 10... Be6 {[%clk 0:02:47.7]} 11. O-O
{[%clk 0:02:47.6]} 11... Qb6 {[%clk 0:02:41.9]} 12. Rfe1 {[%clk 0:02:46.8]}
12... Rfd8 {[%clk 0:02:41.4]} 13. h3 {[%clk 0:02:42.4]} 13... Nh5 {[%clk
0:02:38.2]} 14. Bc4 {[%clk 0:02:39]} 14... Na5 {[%clk 0:02:15]} 15. Bxe6 {[%clk
0:02:36.5]} 15... Qxe6 {[%clk 0:02:15]} 16. Nb3 {[%clk 0:02:16.8]} 16... Nxb3
{[%clk 0:02:10.4]} 17. Qxb3 {[%clk 0:02:17.2]} 17... c4 {[%clk 0:02:04.4]} 18.
Qxb7 {[%clk 0:02:15.4]} 18... g5 {[%clk 0:02:04.7]} 19. Bg3 {[%clk 0:02:06.3]}
19... Nxg3 {[%clk 0:02:03.7]} 20. fxg3 {[%clk 0:02:06.8]} 20... Rab8 {[%clk
0:01:55.4]} 21. Qxa7 {[%clk 0:02:05]} 21... Rxb2 {[%clk 0:01:54.2]} 22. Nd4
{[%clk 0:01:45.2]} 22... Qd6 {[%clk 0:01:44.4]} 23. Nf5 {[%clk 0:01:42.9]} 23...
Qd2 {[%clk 0:01:37.8]} 24. Ne3 {[%clk 0:01:38.1]} 24... Bxc3 {[%clk 0:01:28.5]}
25. Qxe7 {[%clk 0:01:37.4]} 25... Qf2+ {[%clk 0:01:27.2]} 26. Kh1 {[%clk
0:01:35.3]} 26... Rdd2 {[%clk 0:01:24.5]} 27. Rf1 {[%clk 0:01:26.7]} 27... Qxg3
{[%clk 0:01:16.1]} 28. Qe8+ {[%clk 0:01:21.5]} 28... Kh7 {[%clk 0:01:13.1]} 29.
Rxf7+ {[%clk 0:01:21.2]} 29... Bg7 {[%clk 0:01:12.5]} 30. Qe7 {[%clk 0:01:02.6]}
1-0